[Event "*** Titled Tuesday Blitz"]
[Site "Chess.com"]
[Date "2020.12.01"]
[Round "8"]
[White "JoachimMouhamad"]
[Black "Gusarov91"]
[Result "0-1"]
[WhiteElo "2403"]
[BlackElo "2635"]
[TimeControl "180+1"]
[EndTime "11:25:57 PST"]
[Termination "Gusarov91 won by resignation"]

1. e4 {[%clk 0:03:00.9]} 1... c5 {[%clk 0:02:56.7]} 2. Nf3 {[%clk 0:02:59.2]}
2... Nf6 {[%clk 0:02:57.1]} 3. Nc3 {[%clk 0:02:57.5]} 3... d5 {[%clk 0:02:56.8]}
4. exd5 {[%clk 0:02:38.4]} 4... Nxd5 {[%clk 0:02:56.1]} 5. Bb5+ {[%clk
0:02:37.4]} 5... Bd7 {[%clk 0:02:55.9]} 6. Ne5 {[%clk 0:02:37.3]} 6... Bxb5
{[%clk 0:02:54.6]} 7. Qf3 {[%clk 0:02:28.4]} 7... f6 {[%clk 0:02:23.5]} 8. Nxb5
{[%clk 0:02:07.7]} 8... fxe5 {[%clk 0:02:01.7]} 9. Qxd5 {[%clk 0:02:07.5]} 9...
Qxd5 {[%clk 0:02:02.1]} 10. Nc7+ {[%clk 0:02:07.1]} 10... Kd7 {[%clk 0:02:02.8]}
11. Nxd5 {[%clk 0:02:07.1]} 11... e6 {[%clk 0:02:03.3]} 12. Ne3 {[%clk
0:01:52.8]} 12... Nc6 {[%clk 0:02:03]} 13. c3 {[%clk 0:01:39.9]} 13... Bd6
{[%clk 0:02:01.4]} 14. d3 {[%clk 0:01:38.3]} 14... Rhf8 {[%clk 0:01:55.3]} 15.
Nc4 {[%clk 0:01:34.6]} 15... b5 {[%clk 0:01:54.3]} 16. Nxd6 {[%clk 0:01:34.1]}
16... Kxd6 {[%clk 0:01:54.5]} 17. Be3 {[%clk 0:01:35]} 17... Ne7 {[%clk
0:01:51.3]} 18. d4 {[%clk 0:01:29.1]} 18... exd4 {[%clk 0:01:51.2]} 19. cxd4
{[%clk 0:01:28.3]} 19... c4 {[%clk 0:01:51.6]} 20. Bd2 {[%clk 0:01:25.3]} 20...
Nd5 {[%clk 0:01:51.4]} 21. O-O {[%clk 0:01:20.8]} 21... a5 {[%clk 0:01:48.8]}
22. Rac1 {[%clk 0:01:19.4]} 22... Rfc8 {[%clk 0:01:43]} 23. Rfe1 {[%clk
0:01:15.5]} 23... b4 {[%clk 0:01:41.6]} 24. Re5 {[%clk 0:00:50.8]} 24... c3
{[%clk 0:01:39.6]} 25. bxc3 {[%clk 0:00:50.2]} 25... bxc3 {[%clk 0:01:40.1]} 26.
Be3 {[%clk 0:00:48.1]} 26... Rab8 {[%clk 0:01:30.8]} 27. Rg5 {[%clk 0:00:36]}
27... g6 {[%clk 0:01:29.1]} 28. h4 {[%clk 0:00:35.4]} 28... c2 {[%clk
0:01:27.3]} 29. Bd2 {[%clk 0:00:26.8]} 29... Rb1 {[%clk 0:01:26.3]} 30. Rg3
{[%clk 0:00:15.8]} 30... Rxc1+ {[%clk 0:01:19.9]} 31. Bxc1 {[%clk 0:00:16.7]}
31... Rb8 {[%clk 0:01:19.1]} 32. Ba3+ {[%clk 0:00:11.1]} 32... Kd7 {[%clk
0:01:16.3]} 33. Rb3 {[%clk 0:00:11.2]} 33... Rxb3 {[%clk 0:01:14.6]} 34. axb3
{[%clk 0:00:11.7]} 34... Nc3 {[%clk 0:01:14.7]} 35. Kf1 {[%clk 0:00:09.9]} 35...
Na2 {[%clk 0:01:12.2]} 36. Ke2 {[%clk 0:00:09]} 36... c1=Q {[%clk 0:01:12.6]}
37. Bxc1 {[%clk 0:00:09.3]} 37... Nxc1+ {[%clk 0:01:13.5]} 38. Kd2 {[%clk
0:00:09.9]} 38... Nxb3+ {[%clk 0:01:13.8]} 39. Kc3 {[%clk 0:00:10.8]} 39... Nc1
{[%clk 0:01:08.9]} 40. Kc4 {[%clk 0:00:09.5]} 40... Kd6 {[%clk 0:01:07.9]} 0-1

[Event "*** Titled Tuesday Blitz"]
[Site "Chess.com"]
[Date "2020.12.01"]
[Round "8"]
[White "leoduarte"]
[Black "Das_Virus_2020"]
[Result "1/2-1/2"]
[WhiteElo "2338"]
[BlackElo "2448"]
[TimeControl "180+1"]
[EndTime "11:25:57 PST"]
[Termination "Game drawn by repetition"]

1. e4 {[%clk 0:03:00.9]} 1... e6 {[%clk 0:02:58.6]} 2. d4 {[%clk 0:03:00.1]}
2... d5 {[%clk 0:02:58.7]} 3. Nd2 {[%clk 0:03:00.5]} 3... Nf6 {[%clk 0:02:58.1]}
4. e5 {[%clk 0:03:00.1]} 4... Nfd7 {[%clk 0:02:58.2]} 5. Bd3 {[%clk 0:02:59.7]}
5... c5 {[%clk 0:02:58.4]} 6. c3 {[%clk 0:03:00.2]} 6... Nc6 {[%clk 0:02:58.5]}
7. Ne2 {[%clk 0:03:00]} 7... cxd4 {[%clk 0:02:58.8]} 8. cxd4 {[%clk 0:02:59.6]}
8... f6 {[%clk 0:02:58.9]} 9. exf6 {[%clk 0:03:00.1]} 9... Nxf6 {[%clk
0:02:59.5]} 10. Nf3 {[%clk 0:03:00.4]} 10... Bd6 {[%clk 0:02:59.9]} 11. O-O
{[%clk 0:02:59.7]} 11... O-O {[%clk 0:03:00.3]} 12. Bf4 {[%clk 0:02:58.3]} 12...
Bxf4 {[%clk 0:02:59.6]} 13. Nxf4 {[%clk 0:02:57.8]} 13... Ne4 {[%clk 0:03:00.2]}
14. Qc1 {[%clk 0:02:50.8]} 14... Qf6 {[%clk 0:02:58.8]} 15. Ne2 {[%clk
0:02:37.2]} 15... Bd7 {[%clk 0:02:56.3]} 16. Qe3 {[%clk 0:02:32.4]} 16... Nb4
{[%clk 0:02:54.7]} 17. Ne5 {[%clk 0:02:05.5]} 17... Rad8 {[%clk 0:02:53.5]} 18.
Bxe4 {[%clk 0:01:52.5]} 18... dxe4 {[%clk 0:02:54]} 19. Qxe4 {[%clk 0:01:52.3]}
19... Bb5 {[%clk 0:02:54]} 20. a3 {[%clk 0:01:29.8]} 20... Nc6 {[%clk
0:02:47.7]} 21. Nxc6 {[%clk 0:01:12.9]} 21... bxc6 {[%clk 0:02:48.6]} 22. Qe3
{[%clk 0:01:06.1]} 22... Bxe2 {[%clk 0:02:23.6]} 23. Qxe2 {[%clk 0:01:07]} 23...
Rxd4 {[%clk 0:02:18.2]} 24. Rad1 {[%clk 0:00:36]} 24... e5 {[%clk 0:02:07.4]}
25. Rd3 {[%clk 0:00:29.7]} 25... Rfd8 {[%clk 0:01:49.4]} 26. Rxd4 {[%clk
0:00:25.7]} 26... exd4 {[%clk 0:01:46.8]} 27. Qc4+ {[%clk 0:00:25.9]} 27... Kh8
{[%clk 0:01:41.9]} 28. Rd1 {[%clk 0:00:25.1]} 28... h6 {[%clk 0:01:39.8]} 29. g3
{[%clk 0:00:22.3]} 29... Qd6 {[%clk 0:01:34.5]} 30. Rd3 {[%clk 0:00:16]} 30...
Qe5 {[%clk 0:01:27.2]} 31. Qxc6 {[%clk 0:00:08.9]} 31... Rf8 {[%clk 0:01:14.1]}
32. Rf3 {[%clk 0:00:09]} 32... Rd8 {[%clk 0:01:06.2]} 33. Rd3 {[%clk 0:00:09.1]}
33... Rf8 {[%clk 0:00:59.3]} 34. Rf3 {[%clk 0:00:08.9]} 34... Rd8 {[%clk
0:00:58.8]} 35. Rd3 {[%clk 0:00:09.3]} 1/2-1/2

[Event "*** Titled Tuesday Blitz"]
[Site "Chess.com"]
[Date "2020.12.01"]
[Round "8"]
[White "Anna_ChessMate"]
[Black "igorkovalenko"]
[Result "0-1"]
[WhiteElo "2578"]
[BlackElo "2790"]
[TimeControl "180+1"]
[EndTime "11:26:00 PST"]
[Termination "igorkovalenko won by resignation"]

1. d4 {[%clk 0:03:00.9]} 1... Nf6 {[%clk 0:02:58.6]} 2. c4 {[%clk 0:03:00.4]}
2... e6 {[%clk 0:02:58.5]} 3. Nf3 {[%clk 0:03:00.1]} 3... b6 {[%clk 0:02:58.8]}
4. g3 {[%clk 0:03:00.5]} 4... Ba6 {[%clk 0:02:58.9]} 5. Qc2 {[%clk 0:03:00.3]}
5... Bb4+ {[%clk 0:02:58.1]} 6. Bd2 {[%clk 0:02:58.8]} 6... c5 {[%clk
0:02:57.4]} 7. Bg2 {[%clk 0:02:56.8]} 7... Nc6 {[%clk 0:02:56.2]} 8. O-O {[%clk
0:02:50.4]} 8... Rc8 {[%clk 0:02:55.6]} 9. dxc5 {[%clk 0:02:43.3]} 9... Bxc5
{[%clk 0:02:52.9]} 10. b3 {[%clk 0:02:33.6]} 10... d5 {[%clk 0:02:51.6]} 11.
cxd5 {[%clk 0:02:27.9]} 11... Nxd5 {[%clk 0:02:29.5]} 12. Nc3 {[%clk 0:02:26.3]}
12... Ndb4 {[%clk 0:02:00.7]} 13. Qb2 {[%clk 0:02:22.2]} 13... Nd4 {[%clk
0:02:00.6]} 14. a3 {[%clk 0:02:06]} 14... Nbc2 {[%clk 0:01:50.3]} 15. Nxd4
{[%clk 0:02:05.4]} 15... Nxd4 {[%clk 0:01:47.2]} 16. Rfe1 {[%clk 0:02:00.2]}
16... O-O {[%clk 0:01:44.8]} 17. Ne4 {[%clk 0:01:59]} 17... Nxe2+ {[%clk
0:01:34.7]} 18. Rxe2 {[%clk 0:01:15.8]} 18... Bxe2 {[%clk 0:01:35.6]} 19. Bc3
{[%clk 0:01:10.4]} 19... Bd3 {[%clk 0:01:22.4]} 20. Bxg7 {[%clk 0:01:10.1]}
20... Bxe4 {[%clk 0:01:21.9]} 21. Bxe4 {[%clk 0:01:04.2]} 21... f5 {[%clk
0:01:16.5]} 22. Bf3 {[%clk 0:00:31.1]} 22... Rf7 {[%clk 0:01:10]} 23. Be5 {[%clk
0:00:31.7]} 23... Rd7 {[%clk 0:01:04.7]} 24. Bf4 {[%clk 0:00:20]} 24... Bd4
{[%clk 0:01:03.9]} 25. Qe2 {[%clk 0:00:18.3]} 25... e5 {[%clk 0:00:47.6]} 26.
Bxe5 {[%clk 0:00:10.1]} 26... Bxa1 {[%clk 0:00:47.2]} 27. Bxa1 {[%clk
0:00:10.3]} 27... Rc1+ {[%clk 0:00:47]} 28. Kg2 {[%clk 0:00:11]} 28... Rxa1
{[%clk 0:00:47.2]} 29. Qe6+ {[%clk 0:00:11.7]} 29... Kg7 {[%clk 0:00:42.7]} 30.
Bc6 {[%clk 0:00:09.5]} 30... Rd6 {[%clk 0:00:42.1]} 31. Qe5+ {[%clk 0:00:10]}
31... Qf6 {[%clk 0:00:42]} 0-1

[Event "*** Titled Tuesday Blitz"]
[Site "Chess.com"]
[Date "2020.12.01"]
[Round "8"]
[White "Mr_Sinigami"]
[Black "XDPS"]
[Result "1-0"]
[WhiteElo "2587"]
[BlackElo "2762"]
[TimeControl "180+1"]
[EndTime "11:26:00 PST"]
[Termination "Mr_Sinigami won on time"]

1. d4 {[%clk 0:03:00.9]} 1... d5 {[%clk 0:02:59.3]} 2. Nf3 {[%clk 0:02:56.1]}
2... Nf6 {[%clk 0:02:58.8]} 3. Bf4 {[%clk 0:02:55.5]} 3... e6 {[%clk 0:02:58.2]}
4. e3 {[%clk 0:02:55.4]} 4... Bd6 {[%clk 0:02:58.7]} 5. Bg3 {[%clk 0:02:55.4]}
5... O-O {[%clk 0:02:59.1]} 6. Nbd2 {[%clk 0:02:55]} 6... c5 {[%clk 0:02:59.6]}
7. c3 {[%clk 0:02:53.5]} 7... Qc7 {[%clk 0:02:59.9]} 8. dxc5 {[%clk 0:02:51.9]}
8... Qxc5 {[%clk 0:02:59.3]} 9. Bd3 {[%clk 0:02:51.9]} 9... Nbd7 {[%clk
0:02:58.9]} 10. Qe2 {[%clk 0:02:51]} 10... e5 {[%clk 0:02:58.8]} 11. e4 {[%clk
0:02:49.9]} 11... dxe4 {[%clk 0:02:54.7]} 12. Bxe4 {[%clk 0:02:49.5]} 12... Re8
{[%clk 0:02:54.2]} 13. O-O-O {[%clk 0:02:43.2]} 13... Rb8 {[%clk 0:02:48.8]} 14.
Qd3 {[%clk 0:02:24.2]} 14... Bf8 {[%clk 0:02:28.9]} 15. Rhe1 {[%clk 0:02:20.3]}
15... b5 {[%clk 0:02:24.8]} 16. Nb3 {[%clk 0:02:05.6]} 16... Qc7 {[%clk
0:02:20.2]} 17. Kb1 {[%clk 0:02:04.8]} 17... a5 {[%clk 0:02:18.2]} 18. Ng5
{[%clk 0:01:58.2]} 18... g6 {[%clk 0:02:01.5]} 19. Bd5 {[%clk 0:01:49.7]} 19...
Nxd5 {[%clk 0:01:51.6]} 20. Qxd5 {[%clk 0:01:49.2]} 20... Nb6 {[%clk 0:01:40.4]}
21. Qxb5 {[%clk 0:01:34.5]} 21... Nc4 {[%clk 0:01:38.5]} 22. Qa4 {[%clk
0:00:54.8]} 22... Bf5+ {[%clk 0:01:36.2]} 23. Ka1 {[%clk 0:00:54.6]} 23... Na3
{[%clk 0:00:31.2]} 24. Nd4 {[%clk 0:00:43.9]} 24... Qb6 {[%clk 0:00:15.3]} 25.
Qb3 {[%clk 0:00:39.1]} 25... exd4 {[%clk 0:00:12.1]} 26. Qxf7+ {[%clk
0:00:38.4]} 1-0

[Event "*** Titled Tuesday Blitz"]
[Site "Chess.com"]
[Date "2020.12.01"]
[Round "8"]
[White "Pogosian_Manvel"]
[Black "Zq1"]
[Result "1-0"]
[WhiteElo "2409"]
[BlackElo "2556"]
[TimeControl "180+1"]
[EndTime "11:26:04 PST"]
[Termination "Pogosian_Manvel won by resignation"]

1. Nf3 {[%clk 0:03:00.9]} 1... Nf6 {[%clk 0:02:59]} 2. d4 {[%clk 0:03:00.7]}
2... d5 {[%clk 0:02:58.9]} 3. c4 {[%clk 0:03:00.7]} 3... e6 {[%clk 0:02:58.8]}
4. Nc3 {[%clk 0:03:00.4]} 4... Be7 {[%clk 0:02:58.4]} 5. e3 {[%clk 0:02:56]}
5... O-O {[%clk 0:02:56.6]} 6. Bd3 {[%clk 0:02:55.7]} 6... c5 {[%clk 0:02:56.5]}
7. O-O {[%clk 0:02:54.6]} 7... cxd4 {[%clk 0:02:56.1]} 8. exd4 {[%clk
0:02:54.4]} 8... dxc4 {[%clk 0:02:55.6]} 9. Bxc4 {[%clk 0:02:54.5]} 9... Nc6
{[%clk 0:02:56.1]} 10. Re1 {[%clk 0:02:53.7]} 10... b6 {[%clk 0:02:55.8]} 11. a3
{[%clk 0:02:46.5]} 11... Bb7 {[%clk 0:02:55.7]} 12. Qd3 {[%clk 0:02:46.2]} 12...
Rc8 {[%clk 0:02:51.7]} 13. Bb3 {[%clk 0:02:45.8]} 13... Na5 {[%clk 0:02:46.7]}
14. Bc2 {[%clk 0:02:45.8]} 14... g6 {[%clk 0:02:45.9]} 15. Bh6 {[%clk
0:02:44.4]} 15... Re8 {[%clk 0:02:45]} 16. Ne5 {[%clk 0:02:36.4]} 16... Nc6
{[%clk 0:02:28.1]} 17. Nf3 {[%clk 0:02:26.7]} 17... Na5 {[%clk 0:02:18.4]} 18.
Rad1 {[%clk 0:02:13.6]} 18... Nd5 {[%clk 0:02:17.2]} 19. Ne5 {[%clk 0:01:56.6]}
19... Nxc3 {[%clk 0:02:05.8]} 20. bxc3 {[%clk 0:01:55.4]} 20... Bf6 {[%clk
0:02:04.9]} 21. Ng4 {[%clk 0:01:24.6]} 21... Bh8 {[%clk 0:01:49.1]} 22. Ba4
{[%clk 0:01:07.4]} 22... Bc6 {[%clk 0:01:43.1]} 23. Bxc6 {[%clk 0:00:59]} 23...
Rxc6 {[%clk 0:01:42.2]} 24. Qf3 {[%clk 0:00:57.2]} 24... Rc8 {[%clk 0:01:30.4]}
25. d5 {[%clk 0:00:55]} 25... e5 {[%clk 0:01:17.3]} 26. d6 {[%clk 0:00:48.8]}
26... Rc4 {[%clk 0:00:48.6]} 27. d7 {[%clk 0:00:41.9]} 27... Re6 {[%clk
0:00:47.7]} 28. Ne3 {[%clk 0:00:18.8]} 28... Rh4 {[%clk 0:00:39.6]} 29. Bg5
{[%clk 0:00:17.3]} 29... Bf6 {[%clk 0:00:24.1]} 30. Bxf6 {[%clk 0:00:15.4]} 1-0

[Event "*** Titled Tuesday Blitz"]
[Site "Chess.com"]
[Date "2020.12.01"]
[Round "8"]
[White "LamaChampetre"]
[Black "Chuchofrio1"]
[Result "1-0"]
[WhiteElo "2233"]
[BlackElo "2430"]
[TimeControl "180+1"]
[EndTime "11:26:04 PST"]
[Termination "LamaChampetre won by checkmate"]

1. d4 {[%clk 0:03:00.9]} 1... f5 {[%clk 0:02:59.3]} 2. g3 {[%clk 0:02:59.7]}
2... d6 {[%clk 0:02:58]} 3. Bg2 {[%clk 0:02:58.9]} 3... Nf6 {[%clk 0:02:58.9]}
4. Nf3 {[%clk 0:02:58.2]} 4... g6 {[%clk 0:02:59.4]} 5. O-O {[%clk 0:02:58.4]}
5... Bg7 {[%clk 0:03:00]} 6. b3 {[%clk 0:02:58.8]} 6... O-O {[%clk 0:03:00.5]}
7. Bb2 {[%clk 0:02:59.3]} 7... Nc6 {[%clk 0:03:01.1]} 8. Nbd2 {[%clk 0:02:59.8]}
8... Qe8 {[%clk 0:03:00]} 9. c4 {[%clk 0:02:59.6]} 9... e5 {[%clk 0:03:00.4]}
10. dxe5 {[%clk 0:02:59]} 10... dxe5 {[%clk 0:03:01.3]} 11. e4 {[%clk
0:02:55.5]} 11... f4 {[%clk 0:02:59.5]} 12. c5 {[%clk 0:02:47.7]} 12... h6
{[%clk 0:02:49.8]} 13. Qc2 {[%clk 0:02:27.7]} 13... g5 {[%clk 0:02:46.7]} 14.
Nc4 {[%clk 0:02:27.6]} 14... Nd7 {[%clk 0:02:38]} 15. Bh3 {[%clk 0:02:07]} 15...
Nxc5 {[%clk 0:02:13.1]} 16. Bxc8 {[%clk 0:02:04]} 16... Rxc8 {[%clk 0:02:14]}
17. Rac1 {[%clk 0:01:02.1]} 17... Nb4 {[%clk 0:01:56]} 18. Qc3 {[%clk
0:00:48.9]} 18... Nxa2 {[%clk 0:01:52.9]} 19. Qa5 {[%clk 0:00:36.2]} 19... Nxc1
{[%clk 0:01:47.3]} 20. Qxc5 {[%clk 0:00:21.4]} 20... Ne2+ {[%clk 0:01:33.2]} 21.
Kg2 {[%clk 0:00:20.8]} 21... fxg3 {[%clk 0:01:33.5]} 22. fxg3 {[%clk 0:00:19.6]}
22... Nd4 {[%clk 0:01:33.3]} 23. Qd5+ {[%clk 0:00:07.7]} 23... Kh8 {[%clk
0:01:31.5]} 24. Nfxe5 {[%clk 0:00:05.8]} 24... Rxf1 {[%clk 0:01:21.4]} 25. Kxf1
{[%clk 0:00:06.7]} 25... Qf8+ {[%clk 0:01:18.8]} 26. Kg2 {[%clk 0:00:06.6]}
26... Rd8 {[%clk 0:01:15.7]} 27. Ng6+ {[%clk 0:00:06.4]} 27... Kh7 {[%clk
0:01:12.3]} 28. Nxf8+ {[%clk 0:00:06.6]} 28... Rxf8 {[%clk 0:01:10]} 29. Bxd4
{[%clk 0:00:06.5]} 29... c6 {[%clk 0:01:05.2]} 30. Qd7 {[%clk 0:00:05]} 30...
Rg8 {[%clk 0:01:04.4]} 31. Bxg7 {[%clk 0:00:04.9]} 31... Rxg7 {[%clk 0:01:05.3]}
32. Qf5+ {[%clk 0:00:05.2]} 32... Kh8 {[%clk 0:01:05.4]} 33. Ne5 {[%clk
0:00:06.1]} 33... Rc7 {[%clk 0:01:05]} 34. Qf8+ {[%clk 0:00:06]} 34... Kh7
{[%clk 0:01:04.9]} 35. Qf5+ {[%clk 0:00:05.7]} 35... Kh8 {[%clk 0:01:05.2]} 36.
h3 {[%clk 0:00:05.1]} 36... Rg7 {[%clk 0:01:04.8]} 37. Qf6 {[%clk 0:00:05.2]}
37... Kg8 {[%clk 0:01:04.8]} 38. Qe6+ {[%clk 0:00:04.3]} 38... Kh8 {[%clk
0:01:04.9]} 39. Nd7 {[%clk 0:00:04.4]} 39... Kh7 {[%clk 0:01:04.7]} 40. Nf6+
{[%clk 0:00:04.3]} 40... Kh8 {[%clk 0:01:05.1]} 41. Qe8+ {[%clk 0:00:04.2]}
41... Rg8 {[%clk 0:01:05.5]} 42. Qxg8# {[%clk 0:00:04.4]} 1-0

[Event "*** Titled Tuesday Blitz"]
[Site "Chess.com"]
[Date "2020.12.01"]
[Round "8"]
[White "FMOlexandrProhorov"]
[Black "ErikRonka"]
[Result "0-1"]
[WhiteElo "2208"]
[BlackElo "2383"]
[TimeControl "180+1"]
[EndTime "11:26:10 PST"]
[Termination "ErikRonka won on time"]

1. Nf3 {[%clk 0:03:00.9]} 1... Nc6 {[%clk 0:02:55.3]} 2. c4 {[%clk 0:02:57]}
2... e5 {[%clk 0:02:54]} 3. Nc3 {[%clk 0:02:57]} 3... g6 {[%clk 0:02:49.6]} 4.
g3 {[%clk 0:02:56.6]} 4... Bg7 {[%clk 0:02:49.5]} 5. Bg2 {[%clk 0:02:56.8]} 5...
d6 {[%clk 0:02:49.6]} 6. O-O {[%clk 0:02:56.8]} 6... f5 {[%clk 0:02:49.5]} 7. d3
{[%clk 0:02:52.7]} 7... h6 {[%clk 0:02:49.5]} 8. Rb1 {[%clk 0:02:52.3]} 8... Nf6
{[%clk 0:02:47.8]} 9. b4 {[%clk 0:02:50.5]} 9... O-O {[%clk 0:02:48.3]} 10. b5
{[%clk 0:02:50.4]} 10... Ne7 {[%clk 0:02:48.2]} 11. Ne1 {[%clk 0:02:39.3]} 11...
f4 {[%clk 0:02:37.5]} 12. gxf4 {[%clk 0:02:21.1]} 12... exf4 {[%clk 0:02:38.4]}
13. Bxf4 {[%clk 0:02:17.9]} 13... Nh5 {[%clk 0:02:38.4]} 14. Bd2 {[%clk
0:02:18.2]} 14... Nf4 {[%clk 0:02:37.4]} 15. Bxf4 {[%clk 0:01:56.3]} 15... Rxf4
{[%clk 0:02:38.3]} 16. Nd5 {[%clk 0:01:56.4]} 16... Nxd5 {[%clk 0:02:32]} 17.
Bxd5+ {[%clk 0:01:55.4]} 17... Kh7 {[%clk 0:02:31.4]} 18. Ng2 {[%clk 0:01:53.8]}
18... Rg4 {[%clk 0:02:22.6]} 19. Bf3 {[%clk 0:01:43.6]} 19... Rg5 {[%clk
0:02:20.4]} 20. Kh1 {[%clk 0:01:39.6]} 20... Be5 {[%clk 0:02:10]} 21. d4 {[%clk
0:01:37.8]} 21... Bg7 {[%clk 0:01:58.5]} 22. Qd2 {[%clk 0:01:30.7]} 22... Bg4
{[%clk 0:01:48.3]} 23. Bxb7 {[%clk 0:01:25.4]} 23... Bh3 {[%clk 0:01:40.4]} 24.
Rg1 {[%clk 0:01:22.1]} 24... Rb8 {[%clk 0:01:35.4]} 25. Bc6 {[%clk 0:01:14.4]}
25... Qf6 {[%clk 0:01:34.6]} 26. e3 {[%clk 0:01:04.7]} 26... Rh5 {[%clk
0:01:31.2]} 27. f4 {[%clk 0:01:01.1]} 27... Bf5 {[%clk 0:01:28.4]} 28. Rbf1
{[%clk 0:00:58.2]} 28... Rh3 {[%clk 0:01:16.1]} 29. Rf3 {[%clk 0:00:44.2]} 29...
Rxf3 {[%clk 0:01:12.8]} 30. Bxf3 {[%clk 0:00:45.1]} 30... Re8 {[%clk 0:01:12.2]}
31. Re1 {[%clk 0:00:37.8]} 31... g5 {[%clk 0:01:08.6]} 32. fxg5 {[%clk
0:00:34.4]} 32... hxg5 {[%clk 0:01:07.9]} 33. e4 {[%clk 0:00:19.7]} 33... Bxe4
{[%clk 0:01:07.5]} 34. Bxe4+ {[%clk 0:00:17.8]} 34... Rxe4 {[%clk 0:01:06.9]}
35. Rg1 {[%clk 0:00:09.4]} 35... Rxd4 {[%clk 0:01:05.4]} 36. Qe2 {[%clk
0:00:08.3]} 36... Qf5 {[%clk 0:00:57.4]} 37. Qh5+ {[%clk 0:00:07.7]} 37... Bh6
{[%clk 0:00:52.9]} 0-1

[Event "*** Titled Tuesday Blitz"]
[Site "Chess.com"]
[Date "2020.12.01"]
[Round "8"]
[White "marciojor"]
[Black "Alindsay211"]
[Result "0-1"]
[WhiteElo "2256"]
[BlackElo "2402"]
[TimeControl "180+1"]
[EndTime "11:26:10 PST"]
[Termination "Alindsay211 won by resignation"]

1. e4 {[%clk 0:03:00.9]} 1... c5 {[%clk 0:02:59.6]} 2. Nf3 {[%clk 0:03:00.7]}
2... d6 {[%clk 0:02:59.5]} 3. d4 {[%clk 0:03:01.3]} 3... cxd4 {[%clk 0:03:00]}
4. Nxd4 {[%clk 0:03:01.9]} 4... Nf6 {[%clk 0:03:00.9]} 5. Nc3 {[%clk 0:03:02.3]}
5... Nc6 {[%clk 0:03:00.7]} 6. Be2 {[%clk 0:03:02.1]} 6... e6 {[%clk 0:02:56.5]}
7. O-O {[%clk 0:03:02]} 7... Be7 {[%clk 0:02:56.1]} 8. Be3 {[%clk 0:03:02.2]}
8... Bd7 {[%clk 0:02:54.4]} 9. f4 {[%clk 0:03:01.1]} 9... e5 {[%clk 0:02:49.9]}
10. fxe5 {[%clk 0:02:59.9]} 10... dxe5 {[%clk 0:02:49.3]} 11. Nb3 {[%clk
0:02:47.5]} 11... O-O {[%clk 0:02:39.3]} 12. Nc5 {[%clk 0:02:42.1]} 12... Bxc5
{[%clk 0:02:32.2]} 13. Bxc5 {[%clk 0:02:40.4]} 13... Re8 {[%clk 0:02:32.8]} 14.
Qe1 {[%clk 0:02:27.3]} 14... Nd4 {[%clk 0:02:30.7]} 15. Bd3 {[%clk 0:02:26]}
15... Bc6 {[%clk 0:02:20.2]} 16. Qg3 {[%clk 0:02:21.5]} 16... b6 {[%clk
0:02:02.8]} 17. Ba3 {[%clk 0:02:18.6]} 17... Nh5 {[%clk 0:01:36.5]} 18. Qg4
{[%clk 0:01:56.4]} 18... Nf4 {[%clk 0:01:26.9]} 19. Rf2 {[%clk 0:01:46.9]} 19...
h5 {[%clk 0:01:09.8]} 20. Qg3 {[%clk 0:01:44.2]} 20... h4 {[%clk 0:00:44]} 21.
Qe3 {[%clk 0:01:39.7]} 21... Re6 {[%clk 0:00:25.8]} 22. Raf1 {[%clk 0:01:36.8]}
22... Rg6 {[%clk 0:00:23.4]} 23. Kh1 {[%clk 0:01:30.8]} 23... Qg5 {[%clk
0:00:20.6]} 24. Nd5 {[%clk 0:01:05.2]} 24... Nxd5 {[%clk 0:00:08.5]} 25. Qxg5
{[%clk 0:01:03.8]} 25... Rxg5 {[%clk 0:00:09.4]} 26. exd5 {[%clk 0:01:03.3]}
26... Bxd5 {[%clk 0:00:09.7]} 27. c3 {[%clk 0:00:56.5]} 27... Ne6 {[%clk
0:00:09.7]} 28. h3 {[%clk 0:00:42.1]} 28... Nf4 {[%clk 0:00:09.7]} 0-1

[Event "*** Titled Tuesday Blitz"]
[Site "Chess.com"]
[Date "2020.12.01"]
[Round "8"]
[White "CalinGheorghiu"]
[Black "maximnovik"]
[Result "1-0"]
[WhiteElo "2410"]
[BlackElo "2541"]
[TimeControl "180+1"]
[EndTime "11:26:17 PST"]
[Termination "CalinGheorghiu won by resignation"]

1. e4 {[%clk 0:02:56.6]} 1... c6 {[%clk 0:01:13.1]} 2. Nc3 {[%clk 0:02:54.9]}
2... d5 {[%clk 0:01:13.6]} 3. Nf3 {[%clk 0:02:55]} 3... Bg4 {[%clk 0:01:14]} 4.
h3 {[%clk 0:02:54.6]} 4... Bxf3 {[%clk 0:01:14.5]} 5. Qxf3 {[%clk 0:02:54.9]}
5... e6 {[%clk 0:01:15]} 6. g3 {[%clk 0:02:55]} 6... Nf6 {[%clk 0:01:13.8]} 7.
Bg2 {[%clk 0:02:55.5]} 7... d4 {[%clk 0:01:11.5]} 8. Ne2 {[%clk 0:02:55.1]} 8...
e5 {[%clk 0:01:12]} 9. O-O {[%clk 0:02:54.5]} 9... c5 {[%clk 0:01:12]} 10. d3
{[%clk 0:02:54]} 10... Nc6 {[%clk 0:01:12]} 11. g4 {[%clk 0:02:53.4]} 11... g6
{[%clk 0:01:08.9]} 12. g5 {[%clk 0:02:52]} 12... Nd7 {[%clk 0:01:08.4]} 13. h4
{[%clk 0:02:51.7]} 13... h6 {[%clk 0:01:04.1]} 14. Qg3 {[%clk 0:02:51.3]} 14...
hxg5 {[%clk 0:01:03.1]} 15. hxg5 {[%clk 0:02:51.2]} 15... Bd6 {[%clk 0:00:57.5]}
16. f4 {[%clk 0:02:50.3]} 16... exf4 {[%clk 0:00:55.6]} 17. Bxf4 {[%clk
0:02:49.8]} 17... Bxf4 {[%clk 0:00:54.8]} 18. Nxf4 {[%clk 0:02:47.8]} 18... Nce5
{[%clk 0:00:51.8]} 19. Nd5 {[%clk 0:02:26.9]} 19... Rh5 {[%clk 0:00:48.5]} 20.
Nf6+ {[%clk 0:02:24]} 20... Ke7 {[%clk 0:00:38.4]} 21. Nxh5 {[%clk 0:02:22.5]}
21... gxh5 {[%clk 0:00:37.5]} 22. Bh3 {[%clk 0:02:21.5]} 22... Qh8 {[%clk
0:00:30.8]} 23. Bxd7 {[%clk 0:02:03.8]} 23... Nxd7 {[%clk 0:00:24.9]} 24. Rf5
{[%clk 0:02:02.7]} 24... Rg8 {[%clk 0:00:23.4]} 25. Raf1 {[%clk 0:02:01.6]}
25... Rg7 {[%clk 0:00:21.1]} 26. e5 {[%clk 0:01:50.7]} 26... h4 {[%clk
0:00:20.5]} 27. Qf3 {[%clk 0:01:40.6]} 27... Qh7 {[%clk 0:00:16.8]} 28. Qd5
{[%clk 0:00:41.3]} 28... Qh5 {[%clk 0:00:15.6]} 29. Qd6+ {[%clk 0:00:41.1]}
29... Ke8 {[%clk 0:00:15.6]} 30. e6 {[%clk 0:00:36.9]} 30... Rxg5+ {[%clk
0:00:14.4]} 31. Kh2 {[%clk 0:00:34.6]} 31... Qe2+ {[%clk 0:00:13]} 32. R1f2
{[%clk 0:00:32.8]} 32... Qxe6 {[%clk 0:00:12.7]} 33. Qxe6+ {[%clk 0:00:32.4]}
33... fxe6 {[%clk 0:00:12.3]} 34. Rxg5 {[%clk 0:00:32.9]} 1-0